Cogmind - Beta 13 @@@ ROGUE MODE // 2024.04.14 @ 09:00:15 Player: graour Result: Destroyed by as-91243 with Assembled F-torch Performance ------------- Evolutions (0) 0 Regions Visited (2) 400 Robots Destroyed (14) 70 Value Destroyed (301) 301 Prototype IDs (0) 0 Alien Tech Used (0) 0 Bonus (0) 0 TOTAL SCORE: 771 Bonus ------- None Cogmind --------- Core Integrity 0/250 Matter 295/300 Energy 100/100 System Corruption 5% Temperature Cool (69) Movement Rolling (110) Ox2 Location -10/Mines Parts ------- > --- POWER (1) -------- (None) > --- PROPULSION (2) --- Wheel Wheel > --- UTILITY (2) ------ High-capacity Storage Unit Signal Interpreter > --- WEAPON (2) ------- Small Laser Assault Rifle > --- INVENTORY (20) --- Ion Engine Light Treads Light Treads Compact Wheel Compact Wheel Heat Sink Small Storage Unit Sensor Array Light Armor Plating High-powered Tractor Beam High-powered Tractor Beam Small Laser Light Assault Rifle EMP Blaster Mining Claw Peak State ------------ > --- POWER ------------ Light Ion Engine > --- PROPULSION ------- Compact Wheel Compact Wheel > --- UTILITY ---------- High-capacity Storage Unit Signal Interpreter > --- WEAPON ----------- Medium Laser Small Laser > --- INVENTORY -------- Ion Engine Light Treads Light Treads Compact Wheel Compact Wheel Small Storage Unit Sensor Array Light Armor Plating Assault Rifle Mining Claw [Rating: 8] Favorites ----------- Power Light Ion Engine Engine Light Ion Engine Propulsion Compact Wheel Wheel Compact Wheel Utility Signal Interpreter Storage High-capacity Storage Unit Processor Signal Interpreter Weapon Small Laser Energy Gun Small Laser Ballistic Gun Assault Rifle Build | -11 -10 -10 ------- Run | Yrd Mat Min Slots Evolved . | . . . Power . | . . . Propulsion . | . . . Utility . | . . . Weapon . | . . . Parts Attached 19 | 6 11 2 Power 2 | 1 1 . Engine 2 | 1 1 . Core . | . . . Reactor . | . . . Propulsion 8 | 2 5 1 Treads . | . . . Leg . | . . . Wheel 8 | 2 5 1 Hover . | . . . Flight . | . . . Utility 3 | 1 2 . Device . | . . . Storage 2 | 1 1 . Processor 1 | . 1 . Hackware . | . . . Protection . | . . . Artifact . | . . . Weapon 6 | 2 3 1 Energy Gun 4 | 2 2 . Energy Cannon . | . . . Ballistic Gun 2 | . 1 1 Ballistic Cannon . | . . . Launcher . | . . . Special Weapon . | . . . Impact Weapon . | . . . Slashing Weapon . | . . . Piercing Weapon . | . . . Special Melee Weapon . | . . . Unidentified Prototypes . | . . . Parts Lost 8 | . 6 2 Power 2 | . 1 1 Propulsion 4 | . 3 1 Utility . | . . . Weapon 2 | . 2 . Highest Loss Streak 3 | . 3 2 To Critical Strikes . | . . . Average Slot Usage (%) 96 | . 96 97 Engine 13 | . 13 11 Wheel 27 | . 27 28 Storage 14 | . 14 14 Processor 12 | . 12 14 Energy Gun 25 | . 25 21 Ballistic Gun 2 | . 1 7 Naked Turns . | . . . Heaviest Build 48 | 11 48 47 Greatest Support 32 | 32 32 20 Greatest Overweight (x) 2 | . 2 2 Average Overweight (x) . | . . 2 Largest Inventory Capacity 20 | 8 20 20 Average Capacity 17 | 6 17 20 Most Carried 16 | 4 16 16 Average Carried 11 | 2 11 15 Final Capacity 20 | 8 20 20 Final Carried 16 | 4 16 15 Class Distribution -------------------- 73% | Mutant 26% | Scavenger-Mutant Dominant Class ---------------- Mutant | -10/Materials Scavenger-Mutant | -10/Mines Resources | -11 -10 -10 ----------- Run | Yrd Mat Min Matter Collected 481 | 172 252 57 Remotely . | . . . Salvage Created 511 | . 439 72 Parts 29 | . 29 . Haulers Intercepted 1 | . 1 . Recyclers Shooed . | . . . Parts Field Recycled . | . . . Retrieved Matter . | . . . Parts Self-Destructed . | . . . Prevented . | . . . Kills | -11 -10 -10 ------- Run | Yrd Mat Min Combat Hostiles Destroyed 16 | . 11 5 Guns 16 | . 11 5 Classes Destroyed 5 | . 4 1 Hauler 1 | . 1 . Watcher 2 | . 2 . Swarmer 5 | . 5 . Grunt 6 | . 6 . Assembled 5 | . . 5 Best Kill Streak 5 | . 2 5 Combat Bots Only 5 | . 2 5 Max Kills in Single Turn 1 | . 1 1 Gunslinging . | . . . Exploded . | . . . Melee . | . . . Uniques/NPCs Destroyed . | . . . Combat | -11 -10 -10 -------- Run | Yrd Mat Min Hostile Shots Fired 123 | . 88 35 Missed 34 | . 26 8 Damage Taken 971 | . 600 371 Core 252 | . 124 128 Absorbed by Shields . | . . . Core Remaining (%) 100 | 100 . . Volleys Fired 77 | . 55 22 Largest 2 | . 2 2 Hottest 90 | . 90 80 Shots Fired 140 | . 96 44 Gun 140 | . 96 44 Cannon . | . . . Launcher . | . . . Special . | . . . Kinetic 37 | . 23 14 Thermal 103 | . 73 30 Explosive . | . . . Electromagnetic . | . . . Robot Hit Streak 9 | . 9 5 Robot Miss Streak 8 | . 8 3 Penetration Max . | . . . Secondary Targets 5 | . 1 4 Max Gunslinging Chain 1 | . 1 1 Shots Hit Robots 80 | . 55 25 Core Hits 34 | . 23 11 Critical Kills . | . . . Critical Parts Destroyed . | . . . Critical Strikes 2 | . 2 . Burn 2 | . 2 . Melee Attacks . | . . . Impact . | . . . Slashing . | . . . Piercing . | . . . Sneak Attacks . | . . . Combat Hostiles . | . . . Follow-up Attacks . | . . . Damage Inflicted 964 | . 667 297 Guns 964 | . 667 297 Cannons . | . . . Explosions . | . . . Melee . | . . . Ramming . | . . . Kinetic 275 | . 146 129 Thermal 689 | . 521 168 Explosive . | . . . Electromagnetic . | . . . Impact . | . . . Slashing . | . . . Piercing . | . . . Highest Corruption 5 | . . 5 Average Corruption 5 | . . 5 Corruption Purged . | . . . Corruption Blocked . | . . . Overload Shots . | . . . Overflow Damage . | . . . Projectiles . | . . . Explosions . | . . . Melee . | . . . Knockbacks . | . . . Impact . | . . . Kinetic . | . . . Secondary . | . . . Self-Inflicted Damage . | . . . Shots . | . . . Rammed . | . . . Targets Rammed . | . . . Kicked . | . . . Crushed . | . . . Highest Temperature 262 | . 262 144 Average Temperature 75 | . 69 91 Received Heat Transfer 187 | . 147 40 Siege Activations . | . . . Robots Corrupted . | . . . Combat Hostiles . | . . . Parts Fried . | . . . Impact Corruptions . | . . . Robots Melted . | . . . Combat Hostiles . | . . . Parts Melted 2 | . 2 . Heat Transferred 1864 | . 1489 375 Parts Sabotaged . | . . . Parts Stolen . | . . . Parts Stripped . | . . . Power Chain Reactions . | . . . Alert | -11 -10 -10 ------- Run | Yrd Mat Min Peak Influence 146 | . 146 56 Initial 56 | . . 56 Average 56 | . 61 51 Maximum Alert Level . | . . . Low Security (%) 100 | 100 100 100 Level 1 . | . . . Level 2 . | . . . Level 3 . | . . . Level 4 . | . . . Level 5 . | . . . High Security . | . . . Max Security . | . . . Squads Dispatched 2 | . 2 . Investigation 1 | . 1 . Extermination . | . . . Reinforcement 1 | . 1 . Assault . | . . . Garrison . | . . . Intercept . | . . . Searches Triggered . | . . . Construction Impeded . | . . . Haulers Reinforced . | . . . Active Scanning Responses . | . . . Cargo Convoy Interrupts . | . . . Stealth | -11 -10 -10 --------- Run | Yrd Mat Min Distress Signals 2 | . 2 . Communications Jammed . | . . . Distress Signals . | . . . Times Spotted 33 | . 18 15 Peak Tracking Total 17 | . 4 17 Tactical Retreats 2 | . 1 1 Traps | -11 -10 -10 ------- Run | Yrd Mat Min Traps Triggered 1 | . 1 . Indirectly . | . . . Trap Hack Attempts . | . . . Triggered . | . . . Disarmed . | . . . Reprogrammed . | . . . Reused . | . . . Traps Extracted . | . . . Installed . | . . . Triggered . | . . . Machines | -11 -10 -10 ---------- Run | Yrd Mat Min Machines Disabled . | . . . Max in Single Turn . | . . . Machines Repaired . | . . . Machines Dismantled . | . . . Machines Sabotaged . | . . . Overloaded Fab Kills . | . . . Hacking | -11 -10 -10 --------- Run | Yrd Mat Min Machines Accessed 4 | . 4 . Terminals 4 | . 4 . Fabricators . | . . . Repair Stations . | . . . Recycling Units . | . . . Scanalyzers . | . . . Garrison Access . | . . . Total Hacks 8 | . 8 . Successful 4 | . 4 . Failed 4 | . 4 . Catastrophic 1 | . 1 . Database Lockouts . | . . . Manual 8 | . 8 . Terminals 8 | . 8 . Fabricators . | . . . Repair Stations . | . . . Recycling Units . | . . . Scanalyzers . | . . . Garrison Access . | . . . Terminal Hacks 2 | . 2 . Branch Access Points 1 | . 1 . Hauler Manifests 1 | . 1 . Fabricator Hacks . | . . . Repair Station Hacks . | . . . Recycling Unit Hacks . | . . . Scanalyzer . | . . . Garrison Access Hacks . | . . . Unauthorized Hacks 2 | . 2 . Terminals 2 | . 2 . Track 1 | . 1 . Operators 1 | . 1 . Fabricators . | . . . Repair Stations . | . . . Recycling Units . | . . . Scanalyzers . | . . . Garrison Access . | . . . Data Cores Recovered . | . . . Used . | . . . Hacking Detections 1 | . 1 . Full Trace Events . | . . . Feedback Events . | . . . Feedback Blocked . | . . . Robot Schematics Acquired . | . . . Robots Built . | . . . Authchips . | . . . Time . | . . . Total Robot Build Rating . | . . . Part Schematics Acquired . | . . . Parts Built . | . . . Authchips . | . . . Time . | . . . Total Part Build Rating . | . . . Parts Repaired . | . . . Time . | . . . Parts Recycled . | . . . Recycled Matter . | . . . Retrieved Matter . | . . . Retrieved Components . | . . . Parts Scanalyzed . | . . . Part Schematics Acquired . | . . . Parts Damaged . | . . . Bothacking | -11 -10 -10 ------------ Run | Yrd Mat Min Used RIF Installer . | . . . Robots Hacked . | . . . Non-combat . | . . . Combat . | . . . Robot Hacks Applied . | . . . Relay Couplers Released . | . . . Fabnet Peak Effective % . | . . . Robots Rewired . | . . . Allies Hacked . | . . . Hacks Repelled . | . . . Allies | -11 -10 -10 -------- Run | Yrd Mat Min Total Allies . | . . . Largest Group . | . . . Highest-Rated Group . | . . . Highest-Rated Ally . | . . . Total Orders . | . . . Ally Attacks . | . . . Total Damage . | . . . Kills . | . . . Allies Corrupted . | . . . Allies Melted . | . . . Intel | -11 -10 -10 ------- Run | Yrd Mat Min Robot Analysis Total . | . . . Derelict Logs Recovered . | . . . Drone Launches . | . . . Drone Recoveries . | . . . Exploration | -11 -10 -10 ------------- Run | Yrd Mat Min Turns Passed 871 | 59 715 97 Spaces Moved 522 | 48 450 24 Core 2 | 2 . . Treads . | . . . Legs . | . . . Wheels 520 | 46 450 24 Hover . | . . . Flight . | . . . Fastest Speed 50 | 50 100 110 Average Speed 109 | 97 110 110 Slowest Speed 130 | 100 130 110 Overloaded Moves . | . . . Propulsion Burnouts . | . . . Robots Hopped . | . . . Cave-ins Triggered . | . . . Exploration Rate (%) 30 | 4 82 5 Regions Visited 2 Branch Regions 1 Pre-discovered Areas . | . . . Known Exits Taken 1 | . 1 . Unknown Exits Taken 1 | 1 . . Scrap Searched . | . . . Spaces Dug . | . . . Terrain Destroyed . | . . . Melee . | . . . Projectile . | . . . AOE . | . . . Terrain Rammed . | . . . Walls Destroyed . | . . . Machines Disabled . | . . . Actions | -11 -10 -10 --------- Run | Yrd Mat Min Total 675 | 57 567 51 Wait 42 | . 39 3 Move 520 | 47 449 24 Hop . | . . . Pick Up 16 | 4 12 . Fast Attach 10 | 6 4 . Attach 5 | . 4 1 Detach 1 | . 1 . Swap 4 | . 3 1 Drop . | . . . Fire 77 | . 55 22 Melee . | . . . Ram . | . . . Kick . | . . . Crush . | . . . Escape Stasis . | . . . Rewire . | . . . Trap . | . . . Miscellaneous . | . . . Route ------- -11/Scrapyard -10/Materials (discovered 4 exits: *Mat x3 / *Min) -10/Mines History --------- Turn | Location | Event 19 | -11/Scrapyard | Discovered new exit (range 16) 60 | -11/Scrapyard | Entered Materials 242 | -10/Materials | Discovered new exit (range 8) 246 | -10/Materials | Identified exit to Materials 308 | -10/Materials | Build established: Mutant 390 | -10/Materials | Discovered exit to Materials (range 10) 456 | -10/Materials | Identified exit to Mines 591 | -10/Materials | Lost 3 parts (2n1w) 656 | -10/Materials | Lost 3 parts (1p1n1w) 716 | -10/Materials | Discovered exit to Materials (range 14) 775 | -10/Materials | Entered Mines 793 | -10/Mines | Assembled infested the area 798 | -10/Mines | Assisted by a Guerilla fighting off Assembled 819 | -10/Mines | Core integrity fell below 50% 840 | -10/Mines | Core integrity fell below 20% 872 | -10/Mines | Destroyed by as-91243 with Assembled F-torch Last Messages --------------- 00847_ as-29667 suffers critical hit (Destroy). 00847_ as-29667 destroyed. 00847_ Wheel destroyed. 00849_ Acquired 10 matter. 00850_ Acquired 2 matter. 00855_ as-15952 destroyed. 00855_ Switching to secondary target: as-47454. 00856_ Acquired 7 matter. 00857_ Ion Engine destroyed. 00857_ System corrupted by crushing effect (+5). 00857_ Knocked back. 00858_ as-47454 destroyed. 00858_ Switching to secondary target: as-22872. 00859_ Acquired 3 matter. 00860_ 48-FRS(h) heat short circuits Bore Cannon. 00862_ Acquired 3 matter. 00867_ as-84591 destroyed. 00868_ Acquired 1 matter. [Achievement: Back For More] Map ----- +----------------------------------------------------+ | | | | | | | | | | | | | | | | | | | | | | | | | ??????????????????????????????????? | | ??????????????????????????????????? | | ?????????????????#######??????????? | | ?????????????????# #??????????? | | ?????????????????# #??????????? | | ?????????????????# ####???????? | | ?????????????????# #???????? | | ?????????????????# ## #???????? | | ?????????????????# ## #???????? | | ?????????????????######## #???????? | | ????????????????????????# #???????? | | ????????????????????????# #???????? | | ????????????????????????#%#???????? | | ????????????????????????#@#???????? | | ????????????????????????#a#???????? | | ????????????????????????#a#???????? | | ????????????????????????#a#???????? | | ????????????????????????#a#???????? | | ????????????????????????#a#???????? | | ????????????????????????;a#???????? | | ????????????????????????#a#???????? | | ????????????????????????#%#???????? | | ????????????????????????#%#???????? | | ????????????????????????# #???????? | | ????????????????????????# #???????? | | ????????????????????????# ???????? | | ????????????????????????# ???????? | | ????????????????????????? ???????? | | ?????????????????????????% ???????? | | ????????????????????????? ???????? | | ????????????????????????? #???????? | | ????????????????????????? ????????? | | ????????????????????????? ????????? | | ????????????????????????? ????????? | | ??????????????????????????????????? | | ??????????????????????????????????? | | ??????????????????????????????????? | | ??????????????????????????????????? | +----------------------------------------------------+ Best States ------------- Heat Dissipation 25 Energy Generation 10 Energy Capacity 250 Matter Stores 300 Matter Capacity 300 Sight Range 16 Terrain Scan Density 10 Evasion (%) 40 Item Schematics ----------------- None Robot Schematics ------------------ None Fabricated ------------ Nothing Alien Tech Used ----------------- None Achievements -------------- Back For More Challenges ------------ None Game ------ Seed CompositeProtonWings Manual? 0 Play Time 00:12:39 Cumulative 28.0 hours Start 2024.04.14 @ 08:47:54 End 2024.04.14 @ 09:00:15 Sessions 5 Manual Loads 0 Difficulty Rogue Special Mode None Game No. 50 Rogue 50 Adventurer 0 Explorer 0 Win Type - Total 0 Types 0/0/0/0/0/0/0/0/0 Lore% 30 Gallery% 36 Achievement% 25 Wizard Run 0 Options --------- Layout 1 ASCII 0 Keyboard 1 Movement Arrows Keybinds 0 Fullscreen 1 Font 24/Smallcaps Map View 50x35 Zoom Use 0% Tactical HUD 1 Map Filters NONE Filters NONE Steam 1 RUN: 3f5de18c-144a-440f-8e8b-24aa46dcd6d3